[Event "Titled Tuesday Blitz June 13 Early 2023"]
[White "Pham, Le Thao Nguyen"]
[Black "MunichMouse"]
[WhiteFideId "12401226"]
[WhiteElo "2286"]
[BlackElo "2321"]
[Result "1-0"]
[Round "2"]
[TimeControl "180+2"]
[Date "2023.06.13"]
[WhiteClock "0:00:08"]
[BlackClock "0:00:03"]
[Board "179"]

1. d4 {[%clk 0:02:57]}  Nf6 {[%clk 0:02:59]} 2. c4 {[%clk 0:02:57]}  g6 {[%clk 0:03:00]} 3. Nc3 {[%clk 0:02:57]}  Bg7 {[%clk 0:03:00]} 4. e4 {[%clk 0:02:57]}  d6 {[%clk 0:03:01]} 5. Nf3 {[%clk 0:02:56]}  O-O {[%clk 0:03:02]} 6. h3 {[%clk 0:02:57]}  e5 {[%clk 0:03:02]} 7. dxe5 {[%clk 0:02:52]}  dxe5 {[%clk 0:03:01]} 8. Qxd8 {[%clk 0:02:53]}  Rxd8 {[%clk 0:03:01]} 9. Bg5 {[%clk 0:02:53]}  Re8 {[%clk 0:02:59]} 10. Nd5 {[%clk 0:02:52]}  Nxd5 {[%clk 0:02:58]} 11. cxd5 {[%clk 0:02:52]}  c6 {[%clk 0:02:58]} 12. Bc4 {[%clk 0:02:50]}  b5 {[%clk 0:02:58]} 13. Bb3 {[%clk 0:02:49]}  a5 {[%clk 0:02:54]} 14. a4 {[%clk 0:02:46]}  Bb7 {[%clk 0:02:39]} 15. d6 {[%clk 0:02:16]}  Nd7 {[%clk 0:02:23]} 16. Be3 {[%clk 0:02:16]}  c5 {[%clk 0:02:06]} 17. axb5 {[%clk 0:02:12]}  Bxe4 {[%clk 0:02:03]} 18. Ng5 {[%clk 0:01:43]}  Bxg2 {[%clk 0:01:33]} 19. Rg1 {[%clk 0:01:40]}  Bb7 {[%clk 0:01:25]} 20. Bxf7+ {[%clk 0:01:38]}  Kh8 {[%clk 0:01:17]} 21. Bxe8 {[%clk 0:01:37]}  Rxe8 {[%clk 0:01:16]} 22. Rxa5 {[%clk 0:01:35]}  e4 {[%clk 0:00:57]} 23. Ra7 {[%clk 0:01:32]}  Rb8 {[%clk 0:00:56]} 24. Ne6 {[%clk 0:01:07]}  Bxb2 {[%clk 0:00:36]} 25. Nxc5 {[%clk 0:00:59]}  Nxc5 {[%clk 0:00:35]} 26. Bxc5 {[%clk 0:01:00]}  Bf6 {[%clk 0:00:10]} 27. b6 {[%clk 0:00:50]}  Kg8 {[%clk 0:00:10]} 28. Ke2 {[%clk 0:00:42]}  Kf7 {[%clk 0:00:11]} 29. Rd1 {[%clk 0:00:42]}  Ke6 {[%clk 0:00:11]} 30. d7 {[%clk 0:00:42]}  Bd8 {[%clk 0:00:11]} 31. Rd6+ {[%clk 0:00:39]}  Ke5 {[%clk 0:00:11]} 32. Rd1 {[%clk 0:00:31]}  Bd5 {[%clk 0:00:10]} 33. Ra5 {[%clk 0:00:26]}  Ke6 {[%clk 0:00:10]} 34. Ke3 {[%clk 0:00:15]}  Bg5+ {[%clk 0:00:10]} 35. Ke2 {[%clk 0:00:15]}  Bc4+ {[%clk 0:00:10]} 36. Ke1 {[%clk 0:00:15]}  Rd8 {[%clk 0:00:06]} 37. Be3 {[%clk 0:00:11]}  Be7 {[%clk 0:00:03]} 38. Ra7 {[%clk 0:00:08]}  Bb4+ {[%clk 0:00:03]} 39. Bd2 {[%clk 0:00:08]}  Bc5 {[%clk 0:00:03]} 40. Ba5 {[%clk 0:00:08]}  Bd5 {[%clk 0:00:01]} 41. Rc7 {[%clk 0:00:08]}  Bd6 {[%clk 0:00:01]} 42. b7 {[%clk 0:00:06]}  Bxb7 {[%clk 0:00:01]} 43. Rxb7 {[%clk 0:00:06]}  Rxd7 {[%clk 0:00:02]} 44. Rxd7 {[%clk 0:00:05]}  Kxd7 {[%clk 0:00:03]} 45. Bb4 {[%clk 0:00:06]}  Ke6 {[%clk 0:00:03]} 46. Bxd6 {[%clk 0:00:07]}  Kf5 {[%clk 0:00:04]} 47. Bg3 {[%clk 0:00:07]}  g5 {[%clk 0:00:04]} 48. Ke2 {[%clk 0:00:08]}  h5 {[%clk 0:00:05]} 49. Rd5+ {[%clk 0:00:08]}  Ke6 {[%clk 0:00:03]} 50. Rxg5 {[%clk 0:00:08]} 1-0


[Site "https://www.chess.com"]

[Event "Titled Tuesday Blitz June 13 Early 2023"]
[White "Cruz Mendez, Jean Marco"]
[Black "Valle Maytin, Luis Enrique"]
[WhiteFideId "3526402"]
[BlackFideId "3503666"]
[WhiteElo "2064"]
[BlackElo "2225"]
[Result "1-0"]
[Round "2"]
[TimeControl "180+2"]
[Date "2023.06.13"]
[WhiteClock "0:02:04"]
[BlackClock "0:00:47"]
[Board "180"]

1. Nf3 {[%clk 0:03:00]}  d5 {[%clk 0:02:58]} 2. b3 {[%clk 0:03:01]}  Nf6 {[%clk 0:02:57]} 3. Bb2 {[%clk 0:03:01]}  Bf5 {[%clk 0:02:55]} 4. e3 {[%clk 0:03:01]}  e6 {[%clk 0:02:56]} 5. Be2 {[%clk 0:03:00]}  c5 {[%clk 0:02:54]} 6. O-O {[%clk 0:03:00]}  Nc6 {[%clk 0:02:54]} 7. d4 {[%clk 0:02:58]}  Be7 {[%clk 0:02:53]} 8. Nbd2 {[%clk 0:02:56]}  O-O {[%clk 0:02:53]} 9. a3 {[%clk 0:02:56]}  h6 {[%clk 0:02:20]} 10. c4 {[%clk 0:02:52]}  cxd4 {[%clk 0:02:19]} 11. Nxd4 {[%clk 0:02:52]}  Nxd4 {[%clk 0:02:18]} 12. Bxd4 {[%clk 0:02:52]}  b6 {[%clk 0:02:14]} 13. b4 {[%clk 0:02:51]}  Rc8 {[%clk 0:02:08]} 14. Rc1 {[%clk 0:02:50]}  Qd7 {[%clk 0:02:04]} 15. Qb3 {[%clk 0:02:49]}  Rfd8 {[%clk 0:02:03]} 16. h3 {[%clk 0:02:45]}  Ne4 {[%clk 0:01:51]} 17. Nf3 {[%clk 0:02:44]}  dxc4 {[%clk 0:01:48]} 18. Bxc4 {[%clk 0:02:45]}  Bf6 {[%clk 0:01:45]} 19. Rfd1 {[%clk 0:02:39]}  b5 {[%clk 0:01:31]} 20. Bxf6 {[%clk 0:02:25]}  bxc4 {[%clk 0:01:08]} 21. Rxd7 {[%clk 0:02:24]}  cxb3 {[%clk 0:00:57]} 22. Rxd8+ {[%clk 0:02:24]}  Rxd8 {[%clk 0:00:57]} 23. Bxd8 {[%clk 0:02:04]}  Nxf2 {[%clk 0:00:47]} 1-0


[Site "https://www.chess.com"]

[Event "Titled Tuesday Blitz June 13 Early 2023"]
[White "Rodchenkov, Sergey D."]
[Black "Rodriguez Santiago, Jaime"]
[WhiteFideId "4168712"]
[BlackFideId "3100898"]
[WhiteElo "2277"]
[BlackElo "2025"]
[Result "1-0"]
[Round "2"]
[TimeControl "180+2"]
[Date "2023.06.13"]
[WhiteClock "0:00:10"]
[BlackClock "0:00:03"]
[Board "182"]

1. e4 {[%clk 0:03:00]}  c6 {[%clk 0:02:59]} 2. d4 {[%clk 0:03:00]}  d5 {[%clk 0:02:59]} 3. exd5 {[%clk 0:03:01]}  cxd5 {[%clk 0:02:59]} 4. Bd3 {[%clk 0:03:02]}  Nc6 {[%clk 0:02:59]} 5. c3 {[%clk 0:03:02]}  Qc7 {[%clk 0:02:59]} 6. h3 {[%clk 0:02:58]}  g6 {[%clk 0:02:50]} 7. Nf3 {[%clk 0:02:58]}  Bf5 {[%clk 0:02:49]} 8. Be2 {[%clk 0:02:58]}  Bg7 {[%clk 0:02:40]} 9. O-O {[%clk 0:02:58]}  e6 {[%clk 0:02:39]} 10. a4 {[%clk 0:02:44]}  Nge7 {[%clk 0:02:37]} 11. Na3 {[%clk 0:02:45]}  a6 {[%clk 0:02:35]} 12. Nc2 {[%clk 0:02:43]}  Bxc2 {[%clk 0:02:28]} 13. Qxc2 {[%clk 0:02:43]}  Nxd4 {[%clk 0:02:28]} 14. Nxd4 {[%clk 0:02:33]}  Bxd4 {[%clk 0:02:27]} 15. Bh6 {[%clk 0:02:25]}  Nf5 {[%clk 0:02:15]} 16. Qd2 {[%clk 0:02:20]}  Bf6 {[%clk 0:02:07]} 17. Bg4 {[%clk 0:02:06]}  Nxh6 {[%clk 0:01:51]} 18. Qxh6 {[%clk 0:02:07]}  Qe5 {[%clk 0:01:47]} 19. h4 {[%clk 0:01:50]}  Bg7 {[%clk 0:01:45]} 20. Qd2 {[%clk 0:01:50]}  h5 {[%clk 0:01:41]} 21. Bh3 {[%clk 0:01:47]}  O-O {[%clk 0:01:39]} 22. Rae1 {[%clk 0:01:48]}  Qf6 {[%clk 0:01:36]} 23. g3 {[%clk 0:01:47]}  Rfd8 {[%clk 0:01:32]} 24. f4 {[%clk 0:01:48]}  Rac8 {[%clk 0:01:27]} 25. Re5 {[%clk 0:01:42]}  Qe7 {[%clk 0:01:21]} 26. Re2 {[%clk 0:01:34]}  Rc4 {[%clk 0:01:16]} 27. Kh2 {[%clk 0:01:28]}  Rxa4 {[%clk 0:01:09]} 28. f5 {[%clk 0:01:27]}  gxf5 {[%clk 0:00:59]} 29. Rxf5 {[%clk 0:01:22]}  d4 {[%clk 0:00:44]} 30. Rxh5 {[%clk 0:01:11]}  dxc3 {[%clk 0:00:40]} 31. Qc2 {[%clk 0:01:12]}  Rd2 {[%clk 0:00:23]} 32. Rxd2 {[%clk 0:01:01]}  cxd2 {[%clk 0:00:23]} 33. Qxa4 {[%clk 0:00:58]}  Qd8 {[%clk 0:00:17]} 34. Qd1 {[%clk 0:00:57]}  Qd3 {[%clk 0:00:13]} 35. Rg5 {[%clk 0:00:50]}  Kf8 {[%clk 0:00:12]} 36. Bf1 {[%clk 0:00:49]}  Qe3 {[%clk 0:00:11]} 37. Kg2 {[%clk 0:00:46]}  Bd4 {[%clk 0:00:11]} 38. Be2 {[%clk 0:00:39]}  Qf2+ {[%clk 0:00:10]} 39. Kh3 {[%clk 0:00:40]}  Qe1 {[%clk 0:00:08]} 40. h5 {[%clk 0:00:35]}  f6 {[%clk 0:00:08]} 41. Rg4 {[%clk 0:00:35]}  Be5 {[%clk 0:00:08]} 42. h6 {[%clk 0:00:32]}  f5 {[%clk 0:00:05]} 43. Rg5 {[%clk 0:00:21]}  Kf7 {[%clk 0:00:05]} 44. Bh5+ {[%clk 0:00:18]}  Kf6 {[%clk 0:00:05]} 45. Rg6+ {[%clk 0:00:18]}  Ke7 {[%clk 0:00:05]} 46. h7 {[%clk 0:00:18]}  Kd6 {[%clk 0:00:05]} 47. Rg8 {[%clk 0:00:15]}  Kc7 {[%clk 0:00:04]} 48. h8=Q {[%clk 0:00:16]}  Bxh8 {[%clk 0:00:04]} 49. Rxh8 {[%clk 0:00:16]}  e5 {[%clk 0:00:04]} 50. Rh7+ {[%clk 0:00:17]}  Kb6 {[%clk 0:00:04]} 51. Rd7 {[%clk 0:00:17]}  f4 {[%clk 0:00:03]} 52. Rg7 {[%clk 0:00:12]}  e4 {[%clk 0:00:02]} 53. gxf4 {[%clk 0:00:09]}  e3 {[%clk 0:00:02]} 54. Rg1 {[%clk 0:00:08]}  Qf2 {[%clk 0:00:02]} 55. Rg2 {[%clk 0:00:05]}  Qxf4 {[%clk 0:00:02]} 56. Qe2 {[%clk 0:00:05]}  Qf5+ {[%clk 0:00:03]} 57. Bg4 {[%clk 0:00:05]}  Qb1 {[%clk 0:00:03]} 58. Qxe3+ {[%clk 0:00:05]}  Ka5 {[%clk 0:00:03]} 59. Qxd2+ {[%clk 0:00:06]}  Kb5 {[%clk 0:00:03]} 60. Bf3 {[%clk 0:00:07]}  Ka4 {[%clk 0:00:04]} 61. Kg3 {[%clk 0:00:08]}  b5 {[%clk 0:00:05]} 62. Kf2 {[%clk 0:00:08]}  a5 {[%clk 0:00:05]} 63. Qd1+ {[%clk 0:00:09]}  Kb4 {[%clk 0:00:05]} 64. Qxb1 {[%clk 0:00:09]}  a4 {[%clk 0:00:03]} 65. Rg4+ {[%clk 0:00:10]} 1-0


[Site "https://www.chess.com"]

[Event "Titled Tuesday Blitz June 13 Early 2023"]
[White "babbilator"]
[Black "Tokman, Ariel"]
[BlackFideId "117420"]
[WhiteElo "2314"]
[BlackElo "2263"]
[Result "0-1"]
[Round "2"]
[TimeControl "180+2"]
[Date "2023.06.13"]
[WhiteClock "0:00:10"]
[BlackClock "0:00:58"]
[Board "183"]

1. e4 {[%clk 0:03:00]}  c5 {[%clk 0:02:59]} 2. Nc3 {[%clk 0:03:01]}  d6 {[%clk 0:03:00]} 3. Nf3 {[%clk 0:03:00]}  Nc6 {[%clk 0:03:01]} 4. d4 {[%clk 0:03:01]}  cxd4 {[%clk 0:03:02]} 5. Nxd4 {[%clk 0:03:01]}  Nf6 {[%clk 0:02:50]} 6. f3 {[%clk 0:03:00]}  g6 {[%clk 0:02:48]} 7. Be3 {[%clk 0:03:00]}  Bg7 {[%clk 0:02:48]} 8. Qd2 {[%clk 0:03:01]}  O-O {[%clk 0:02:48]} 9. O-O-O {[%clk 0:03:01]}  Nxd4 {[%clk 0:02:48]} 10. Bxd4 {[%clk 0:03:01]}  Be6 {[%clk 0:02:49]} 11. Kb1 {[%clk 0:03:01]}  Qc7 {[%clk 0:02:49]} 12. h4 {[%clk 0:03:00]}  Rfc8 {[%clk 0:02:49]} 13. h5 {[%clk 0:03:00]}  Qa5 {[%clk 0:02:49]} 14. h6 {[%clk 0:02:56]}  Bh8 {[%clk 0:02:48]} 15. Bxf6 {[%clk 0:02:54]}  exf6 {[%clk 0:02:25]} 16. Nd5 {[%clk 0:02:32]}  Qxd2 {[%clk 0:02:15]} 17. Rxd2 {[%clk 0:02:31]}  Kf8 {[%clk 0:02:15]} 18. g4 {[%clk 0:02:04]}  Rc5 {[%clk 0:02:07]} 19. Be2 {[%clk 0:02:02]}  f5 {[%clk 0:02:05]} 20. gxf5 {[%clk 0:02:01]}  gxf5 {[%clk 0:02:04]} 21. Rhd1 {[%clk 0:01:21]}  fxe4 {[%clk 0:01:59]} 22. fxe4 {[%clk 0:01:18]}  Be5 {[%clk 0:01:52]} 23. b4 {[%clk 0:01:09]}  Rcc8 {[%clk 0:01:36]} 24. c4 {[%clk 0:01:08]}  a5 {[%clk 0:01:34]} 25. Nb6 {[%clk 0:01:05]}  axb4 {[%clk 0:01:32]} 26. Nxc8 {[%clk 0:01:04]}  Rxc8 {[%clk 0:01:32]} 27. Rc2 {[%clk 0:00:25]}  Ke7 {[%clk 0:01:24]} 28. Rg1 {[%clk 0:00:20]}  Bc3 {[%clk 0:01:06]} 29. Kc1 {[%clk 0:00:16]}  Bxc4 {[%clk 0:01:04]} 30. Bxc4 {[%clk 0:00:15]}  Rxc4 {[%clk 0:01:04]} 31. Rg4 {[%clk 0:00:14]}  Rc5 {[%clk 0:00:58]} 32. Rh2 {[%clk 0:00:10]} 0-1


[Site "https://www.chess.com"]

[Event "Titled Tuesday Blitz June 13 Early 2023"]
[White "Gomes, Luiz Alexandre de Souza"]
[Black "Gonzalez Vega, Alejandro"]
[WhiteFideId "2102790"]
[BlackFideId "3510042"]
[WhiteElo "2502"]
[BlackElo "2302"]
[Result "1-0"]
[Round "2"]
[TimeControl "180+2"]
[Date "2023.06.13"]
[WhiteClock "0:01:05"]
[BlackClock "0:00:00"]
[Board "186"]

1. e4 {[%clk 0:03:00]}  c5 {[%clk 0:02:58]} 2. Nf3 {[%clk 0:03:00]}  a6 {[%clk 0:02:58]} 3. c4 {[%clk 0:03:00]}  d6 {[%clk 0:02:57]} 4. Nc3 {[%clk 0:03:00]}  e6 {[%clk 0:02:56]} 5. d3 {[%clk 0:03:00]}  Nf6 {[%clk 0:02:56]} 6. Be2 {[%clk 0:03:01]}  Nc6 {[%clk 0:02:56]} 7. O-O {[%clk 0:03:01]}  Be7 {[%clk 0:02:56]} 8. a3 {[%clk 0:03:00]}  O-O {[%clk 0:02:56]} 9. Rb1 {[%clk 0:03:00]}  Rb8 {[%clk 0:02:54]} 10. b4 {[%clk 0:02:56]}  cxb4 {[%clk 0:02:40]} 11. axb4 {[%clk 0:02:56]}  b5 {[%clk 0:02:34]} 12. cxb5 {[%clk 0:02:53]}  axb5 {[%clk 0:02:33]} 13. d4 {[%clk 0:02:53]}  d5 {[%clk 0:02:29]} 14. exd5 {[%clk 0:02:49]}  Nxd5 {[%clk 0:02:25]} 15. Nxd5 {[%clk 0:02:48]}  Qxd5 {[%clk 0:02:24]} 16. Be3 {[%clk 0:02:43]}  Rd8 {[%clk 0:01:56]} 17. Qd2 {[%clk 0:02:39]}  Bb7 {[%clk 0:01:33]} 18. Rfd1 {[%clk 0:02:23]}  Ra8 {[%clk 0:01:22]} 19. Rb2 {[%clk 0:02:21]}  Ra4 {[%clk 0:01:18]} 20. Qd3 {[%clk 0:02:15]}  Nxb4 {[%clk 0:00:38]} 21. Qxb5 {[%clk 0:02:11]}  Qxb5 {[%clk 0:00:35]} 22. Bxb5 {[%clk 0:02:12]}  Ra2 {[%clk 0:00:25]} 23. Rxa2 {[%clk 0:02:10]}  Nxa2 {[%clk 0:00:24]} 24. Ne5 {[%clk 0:02:09]}  Nc3 {[%clk 0:00:22]} 25. Rc1 {[%clk 0:01:40]}  Nxb5 {[%clk 0:00:19]} 26. Rb1 {[%clk 0:01:40]}  Ba6 {[%clk 0:00:19]} 27. Nc6 {[%clk 0:01:36]}  Rd7 {[%clk 0:00:16]} 28. h3 {[%clk 0:01:29]}  h6 {[%clk 0:00:14]} 29. Nb8 {[%clk 0:01:26]}  Rb7 {[%clk 0:00:13]} 30. Nxa6 {[%clk 0:01:27]}  Bf6 {[%clk 0:00:05]} 31. Nc5 {[%clk 0:01:25]}  Rb8 {[%clk 0:00:05]} 32. Nd7 {[%clk 0:01:23]}  Rb7 {[%clk 0:00:05]} 33. Nxf6+ {[%clk 0:01:22]}  gxf6 {[%clk 0:00:04]} 34. Bxh6 {[%clk 0:01:21]}  Kh7 {[%clk 0:00:04]} 35. Be3 {[%clk 0:01:21]}  Kg6 {[%clk 0:00:03]} 36. g3 {[%clk 0:01:21]}  Kf5 {[%clk 0:00:03]} 37. Kg2 {[%clk 0:01:21]}  Ke4 {[%clk 0:00:03]} 38. h4 {[%clk 0:01:15]}  f5 {[%clk 0:00:02]} 39. h5 {[%clk 0:01:14]}  Kd5 {[%clk 0:00:01]} 40. h6 {[%clk 0:01:13]}  Kc4 {[%clk 0:00:01]} 41. Rc1+ {[%clk 0:01:12]}  Kb4 {[%clk 0:00:00]} 42. Rc8 {[%clk 0:01:05]} 1-0


[Site "https://www.chess.com"]

[Event "Titled Tuesday Blitz June 13 Early 2023"]
[White "Aarav Dengla"]
[Black "Balint, Vilmos"]
[WhiteFideId "45059756"]
[BlackFideId "718050"]
[WhiteElo "2288"]
[BlackElo "2034"]
[Result "1-0"]
[Round "2"]
[TimeControl "180+2"]
[Date "2023.06.13"]
[WhiteClock "0:02:17"]
[BlackClock "0:01:44"]
[Board "189"]

1. e4 {[%clk 0:03:00]}  e6 {[%clk 0:03:00]} 2. d3 {[%clk 0:02:59]}  d5 {[%clk 0:03:01]} 3. Nd2 {[%clk 0:02:59]}  c5 {[%clk 0:03:01]} 4. g3 {[%clk 0:02:59]}  Nc6 {[%clk 0:03:02]} 5. Bg2 {[%clk 0:02:59]}  b5 {[%clk 0:03:02]} 6. Ngf3 {[%clk 0:02:59]}  Bb7 {[%clk 0:03:02]} 7. O-O {[%clk 0:02:59]}  Nf6 {[%clk 0:03:03]} 8. c3 {[%clk 0:02:57]}  Be7 {[%clk 0:03:03]} 9. Qc2 {[%clk 0:02:57]}  Qc7 {[%clk 0:03:03]} 10. Re1 {[%clk 0:02:57]}  b4 {[%clk 0:02:55]} 11. Nb3 {[%clk 0:02:46]}  bxc3 {[%clk 0:02:54]} 12. bxc3 {[%clk 0:02:47]}  O-O {[%clk 0:02:54]} 13. Be3 {[%clk 0:02:46]}  dxe4 {[%clk 0:02:41]} 14. dxe4 {[%clk 0:02:47]}  c4 {[%clk 0:02:40]} 15. Nbd2 {[%clk 0:02:43]}  Rac8 {[%clk 0:02:22]} 16. Rab1 {[%clk 0:02:41]}  Ba6 {[%clk 0:02:21]} 17. Qa4 {[%clk 0:02:38]}  Qa5 {[%clk 0:02:20]} 18. Qxa5 {[%clk 0:02:35]}  Nxa5 {[%clk 0:02:20]} 19. Bxa7 {[%clk 0:02:36]}  Rfd8 {[%clk 0:02:18]} 20. Bb6 {[%clk 0:02:35]}  Nc6 {[%clk 0:02:06]} 21. Bxd8 {[%clk 0:02:33]}  Bxd8 {[%clk 0:02:06]} 22. Bf1 {[%clk 0:02:31]}  Ba5 {[%clk 0:01:57]} 23. Bxc4 {[%clk 0:02:30]}  Bxc4 {[%clk 0:01:56]} 24. Nxc4 {[%clk 0:02:31]}  Bxc3 {[%clk 0:01:57]} 25. Rec1 {[%clk 0:02:31]}  Nxe4 {[%clk 0:01:55]} 26. Nd6 {[%clk 0:02:20]}  Nxd6 {[%clk 0:01:55]} 27. Rxc3 {[%clk 0:02:18]}  Kf8 {[%clk 0:01:44]} 28. Rbc1 {[%clk 0:02:17]} 1-0


[Site "https://www.chess.com"]

[Event "Titled Tuesday Blitz June 13 Early 2023"]
[White "Kubicka, Anna"]
[Black "Marchesich, Giovanni"]
[WhiteFideId "1152254"]
[BlackFideId "2824790"]
[WhiteElo "2144"]
[BlackElo "2213"]
[Result "1/2-1/2"]
[Round "2"]
[TimeControl "180+2"]
[Date "2023.06.13"]
[WhiteClock "0:00:20"]
[BlackClock "0:00:09"]
[Board "192"]

1. e4 {[%clk 0:03:00]}  e5 {[%clk 0:02:59]} 2. Nf3 {[%clk 0:03:00]}  d5 {[%clk 0:02:59]} 3. exd5 {[%clk 0:02:59]}  e4 {[%clk 0:03:00]} 4. Qe2 {[%clk 0:02:58]}  Nf6 {[%clk 0:03:01]} 5. Nc3 {[%clk 0:02:52]}  Bc5 {[%clk 0:02:57]} 6. d4 {[%clk 0:02:47]}  Bb4 {[%clk 0:02:45]} 7. Bg5 {[%clk 0:02:42]}  O-O {[%clk 0:02:45]} 8. Nd2 {[%clk 0:02:42]}  h6 {[%clk 0:02:21]} 9. Bxf6 {[%clk 0:02:38]}  Qxf6 {[%clk 0:02:22]} 10. Ndxe4 {[%clk 0:02:29]}  Qxd4 {[%clk 0:02:20]} 11. Rd1 {[%clk 0:02:28]}  Qe5 {[%clk 0:02:13]} 12. Rd3 {[%clk 0:02:06]}  Bf5 {[%clk 0:02:02]} 13. f3 {[%clk 0:01:43]}  Re8 {[%clk 0:02:00]} 14. Re3 {[%clk 0:01:43]}  Nd7 {[%clk 0:01:45]} 15. Qc4 {[%clk 0:01:36]}  Bxc3+ {[%clk 0:01:42]} 16. Qxc3 {[%clk 0:01:28]}  Qxd5 {[%clk 0:01:32]} 17. Bc4 {[%clk 0:01:23]}  Qc6 {[%clk 0:01:25]} 18. O-O {[%clk 0:01:19]}  Ne5 {[%clk 0:01:19]} 19. Ng3 {[%clk 0:01:10]}  Nxc4 {[%clk 0:00:54]} 20. Rxe8+ {[%clk 0:01:02]}  Rxe8 {[%clk 0:00:54]} 21. Nxf5 {[%clk 0:01:03]}  Qc5+ {[%clk 0:00:44]} 22. Kh1 {[%clk 0:01:03]}  Qxf5 {[%clk 0:00:36]} 23. Qxc4 {[%clk 0:01:02]}  Qe5 {[%clk 0:00:35]} 24. h3 {[%clk 0:00:48]}  Qe2 {[%clk 0:00:31]} 25. Qxe2 {[%clk 0:00:39]}  Rxe2 {[%clk 0:00:32]} 26. Rc1 {[%clk 0:00:39]}  f5 {[%clk 0:00:32]} 27. Kg1 {[%clk 0:00:35]}  f4 {[%clk 0:00:32]} 28. Kf1 {[%clk 0:00:36]}  Rd2 {[%clk 0:00:32]} 29. a4 {[%clk 0:00:35]}  a5 {[%clk 0:00:32]} 30. b3 {[%clk 0:00:35]}  Kf7 {[%clk 0:00:30]} 31. c4 {[%clk 0:00:34]}  Rb2 {[%clk 0:00:21]} 32. Rc3 {[%clk 0:00:32]}  Ke6 {[%clk 0:00:17]} 33. Rd3 {[%clk 0:00:33]}  c6 {[%clk 0:00:08]} 34. Kg1 {[%clk 0:00:30]}  Kf5 {[%clk 0:00:08]} 35. h4 {[%clk 0:00:26]}  Kg6 {[%clk 0:00:05]} 36. Kh2 {[%clk 0:00:25]}  Kh5 {[%clk 0:00:05]} 37. Kh3 {[%clk 0:00:25]}  Rb1 {[%clk 0:00:06]} 38. Kh2 {[%clk 0:00:26]}  Kxh4 {[%clk 0:00:06]} 39. Rd7 {[%clk 0:00:24]}  Rxb3 {[%clk 0:00:05]} 40. Rxg7 {[%clk 0:00:25]}  Kh5 {[%clk 0:00:05]} 41. Kh3 {[%clk 0:00:23]}  Rb4 {[%clk 0:00:05]} 42. g3 {[%clk 0:00:20]}  fxg3 {[%clk 0:00:06]} 43. Kxg3 {[%clk 0:00:20]}  Rxc4 {[%clk 0:00:06]} 44. Rxb7 {[%clk 0:00:19]}  Kg6 {[%clk 0:00:07]} 45. Rb6 {[%clk 0:00:18]}  Kf5 {[%clk 0:00:06]} 46. Ra6 {[%clk 0:00:19]}  Rxa4 {[%clk 0:00:06]} 47. Rxc6 {[%clk 0:00:19]}  h5 {[%clk 0:00:05]} 48. Rc5+ {[%clk 0:00:20]}  Kg6 {[%clk 0:00:05]} 49. Rc6+ {[%clk 0:00:20]}  Kf5 {[%clk 0:00:05]} 50. Rc5+ {[%clk 0:00:21]}  Kg6 {[%clk 0:00:06]} 51. Rc6+ {[%clk 0:00:21]}  Kg7 {[%clk 0:00:06]} 52. Rc7+ {[%clk 0:00:20]}  Kf6 {[%clk 0:00:07]} 53. Rc6+ {[%clk 0:00:21]}  Ke7 {[%clk 0:00:07]} 54. Rc5 {[%clk 0:00:21]}  h4+ {[%clk 0:00:07]} 55. Kh3 {[%clk 0:00:21]}  Rf4 {[%clk 0:00:07]} 56. Rxa5 {[%clk 0:00:21]}  Rxf3+ {[%clk 0:00:07]} 57. Kxh4 {[%clk 0:00:20]}  Rf6 {[%clk 0:00:08]} 58. Re5+ {[%clk 0:00:19]}  Re6 {[%clk 0:00:08]} 59. Rxe6+ {[%clk 0:00:20]}  Kxe6 {[%clk 0:00:09]} 1/2-1/2


[Site "https://www.chess.com"]

[Event "Titled Tuesday Blitz June 13 Early 2023"]
[White "Samaganova, Aleksandra"]
[Black "whiteglovethief"]
[WhiteFideId "13800221"]
[WhiteElo "1858"]
[BlackElo "2498"]
[Result "0-1"]
[Round "2"]
[TimeControl "180+2"]
[Date "2023.06.13"]
[WhiteClock "0:00:00"]
[BlackClock "0:00:16"]
[Board "195"]

1. c4 {[%clk 0:03:00]}  Nf6 {[%clk 0:02:59]} 2. Nc3 {[%clk 0:02:58]}  g6 {[%clk 0:03:00]} 3. g3 {[%clk 0:02:54]}  Bg7 {[%clk 0:02:58]} 4. Bg2 {[%clk 0:02:44]}  O-O {[%clk 0:02:59]} 5. e3 {[%clk 0:02:43]}  e5 {[%clk 0:02:54]} 6. Nge2 {[%clk 0:02:42]}  c6 {[%clk 0:02:49]} 7. O-O {[%clk 0:02:42]}  d5 {[%clk 0:02:49]} 8. cxd5 {[%clk 0:02:41]}  cxd5 {[%clk 0:02:49]} 9. d4 {[%clk 0:02:41]}  Nc6 {[%clk 0:02:32]} 10. dxe5 {[%clk 0:02:28]}  Nxe5 {[%clk 0:02:33]} 11. h3 {[%clk 0:01:51]}  Be6 {[%clk 0:02:18]} 12. Nd4 {[%clk 0:01:45]}  Qd7 {[%clk 0:02:14]} 13. Kh2 {[%clk 0:01:44]}  Nc6 {[%clk 0:02:11]} 14. Nce2 {[%clk 0:01:43]}  Rad8 {[%clk 0:02:06]} 15. b3 {[%clk 0:01:41]}  Ne4 {[%clk 0:02:05]} 16. Bb2 {[%clk 0:01:40]}  h5 {[%clk 0:01:44]} 17. Nxe6 {[%clk 0:01:14]}  Qxe6 {[%clk 0:01:40]} 18. Bxg7 {[%clk 0:01:14]}  Kxg7 {[%clk 0:01:38]} 19. Nd4 {[%clk 0:01:11]}  Qe5 {[%clk 0:01:35]} 20. Nf3 {[%clk 0:00:57]}  Qf6 {[%clk 0:01:35]} 21. h4 {[%clk 0:00:49]}  Rfe8 {[%clk 0:01:24]} 22. Rc1 {[%clk 0:00:41]}  d4 {[%clk 0:01:10]} 23. exd4 {[%clk 0:00:37]}  Nxd4 {[%clk 0:01:09]} 24. Nxd4 {[%clk 0:00:34]}  Rxd4 {[%clk 0:01:10]} 25. Qe2 {[%clk 0:00:11]}  Rd2 {[%clk 0:01:03]} 26. Qe3 {[%clk 0:00:11]}  Rxf2 {[%clk 0:01:01]} 27. Qxa7 {[%clk 0:00:05]}  b6 {[%clk 0:00:37]} 28. Qb7 {[%clk 0:00:03]}  Qe5 {[%clk 0:00:31]} 29. Kg1 {[%clk 0:00:01]}  Qxg3 {[%clk 0:00:29]} 30. Rxf2 {[%clk 0:00:01]}  Qxf2+ {[%clk 0:00:29]} 31. Kh1 {[%clk 0:00:02]}  Qxh4+ {[%clk 0:00:28]} 32. Kg1 {[%clk 0:00:02]}  Qf2+ {[%clk 0:00:26]} 33. Kh1 {[%clk 0:00:02]}  Qe3 {[%clk 0:00:17]} 34. Rd1 {[%clk 0:00:01]}  Nf2+ {[%clk 0:00:17]} 35. Kh2 {[%clk 0:00:00]}  Nxd1 {[%clk 0:00:16]} 0-1


[Site "https://www.chess.com"]